[Event "Late-Titled-Tuesday-Blitz-July-09-2024"]
[Site "Chess.com"]
[Date "2024.07.09"]
[Round "7"]
[White "Yahisalem"]
[Black "TOCANTINS_TO"]
[Result "0-1"]
[WhiteElo "1953"]
[BlackElo "2046"]
[TimeControl "180+1"]
[EndTime "15:15:32 PDT"]
[Termination "TOCANTINS_TO won by resignation"]

1. e4 {[%clk 0:02:59.7]} 1... c5 {[%clk 0:03:00]} 2. Nf3 {[%clk 0:02:59.5]} 2...
e6 {[%clk 0:02:59.9]} 3. d4 {[%clk 0:02:59.3]} 3... cxd4 {[%clk 0:03:00.5]} 4.
Nxd4 {[%clk 0:02:59.1]} 4... Nc6 {[%clk 0:03:01.2]} 5. Be3 {[%clk 0:02:57.7]}
5... Nf6 {[%clk 0:02:59.5]} 6. f3 {[%clk 0:02:56.8]} 6... d5 {[%clk 0:02:54]} 7.
Nxc6 {[%clk 0:02:53.7]} 7... bxc6 {[%clk 0:02:53.4]} 8. e5 {[%clk 0:02:52]} 8...
Nd7 {[%clk 0:02:53.1]} 9. f4 {[%clk 0:02:51.7]} 9... Bc5 {[%clk 0:02:22.3]} 10.
Qd2 {[%clk 0:02:30.6]} 10... Qb6 {[%clk 0:01:53.9]} 11. Bxc5 {[%clk 0:02:25.1]}
11... Nxc5 {[%clk 0:01:52.4]} 12. b3 {[%clk 0:02:10.9]} 12... Ne4 {[%clk
0:01:50.9]} 13. Qd3 {[%clk 0:01:54.6]} 13... Qf2+ {[%clk 0:01:46.2]} 14. Kd1
{[%clk 0:01:54.4]} 14... Qxf4 {[%clk 0:01:42.2]} 15. Qg3 {[%clk 0:01:30.8]}
15... Qxg3 {[%clk 0:01:19.6]} 16. hxg3 {[%clk 0:01:30]} 16... Nf2+ {[%clk
0:01:19.8]} 17. Ke2 {[%clk 0:01:29.9]} 17... Nxh1 {[%clk 0:01:20.4]} 18. Kf3
{[%clk 0:01:26.7]} 18... h5 {[%clk 0:01:06.7]} 19. Nd2 {[%clk 0:01:12.1]} 19...
h4 {[%clk 0:01:06.8]} 20. gxh4 {[%clk 0:01:10.8]} 20... Rxh4 {[%clk 0:01:06.3]}
21. Bd3 {[%clk 0:01:06.8]} 21... Ke7 {[%clk 0:01:01.9]} 22. g3 {[%clk
0:01:06.3]} 22... Rh6 {[%clk 0:00:51.2]} 23. Kg2 {[%clk 0:01:01.3]} 23... Nxg3
{[%clk 0:00:45]} 24. Kxg3 {[%clk 0:01:01.3]} 24... Bd7 {[%clk 0:00:42.3]} 25.
Rf1 {[%clk 0:00:57.9]} 25... Rah8 {[%clk 0:00:41.4]} 26. Nf3 {[%clk 0:00:54]}
26... f6 {[%clk 0:00:40.5]} 27. exf6+ {[%clk 0:00:50.7]} 27... gxf6 {[%clk
0:00:40.7]} 28. Kf2 {[%clk 0:00:45.4]} 28... e5 {[%clk 0:00:39.9]} 29. Rg1
{[%clk 0:00:40.8]} 29... e4 {[%clk 0:00:38.4]} 30. Nd4 {[%clk 0:00:38.2]} 30...
exd3 {[%clk 0:00:37.8]} 31. Rg7+ {[%clk 0:00:35.4]} 31... Kd6 {[%clk 0:00:37]}
32. Rxd7+ {[%clk 0:00:35.3]} 32... Kxd7 {[%clk 0:00:37]} 0-1

[Event "Late-Titled-Tuesday-Blitz-July-09-2024"]
[Site "Chess.com"]
[Date "2024.07.09"]
[Round "7"]
[White "Korchmar_Vasiliy"]
[Black "Charodej1"]
[Result "1-0"]
[WhiteElo "2610"]
[BlackElo "2391"]
[TimeControl "180+1"]
[EndTime "15:15:36 PDT"]
[Termination "Korchmar_Vasiliy won by resignation"]

1. e4 {[%clk 0:03:00.9]} 1... c6 {[%clk 0:02:58.1]} 2. d4 {[%clk 0:03:00.6]}
2... d5 {[%clk 0:02:57.7]} 3. exd5 {[%clk 0:03:01.1]} 3... cxd5 {[%clk
0:02:57.4]} 4. Bd3 {[%clk 0:03:01.3]} 4... Nc6 {[%clk 0:02:57]} 5. c3 {[%clk
0:03:01.1]} 5... Nf6 {[%clk 0:02:56.9]} 6. h3 {[%clk 0:03:00.8]} 6... Qc7 {[%clk
0:02:53.7]} 7. Nf3 {[%clk 0:03:00.9]} 7... g6 {[%clk 0:02:52.4]} 8. O-O {[%clk
0:03:00.3]} 8... Bf5 {[%clk 0:02:46.7]} 9. Re1 {[%clk 0:02:58.7]} 9... Bxd3
{[%clk 0:02:37]} 10. Qxd3 {[%clk 0:02:58.5]} 10... Bg7 {[%clk 0:02:32.1]} 11.
Bg5 {[%clk 0:02:49.1]} 11... O-O {[%clk 0:02:23.5]} 12. Nbd2 {[%clk 0:02:48.4]}
12... Nh5 {[%clk 0:02:08.2]} 13. Qb5 {[%clk 0:02:19.7]} 13... Rfd8 {[%clk
0:01:56.3]} 14. Nb3 {[%clk 0:02:18]} 14... a6 {[%clk 0:01:51.3]} 15. Qe2 {[%clk
0:02:18.1]} 15... Re8 {[%clk 0:01:39.4]} 16. Ne5 {[%clk 0:02:10]} 16... h6
{[%clk 0:01:28.7]} 17. Bd2 {[%clk 0:01:58.3]} 17... Nf6 {[%clk 0:01:16.8]} 18.
Bf4 {[%clk 0:01:52.5]} 18... Qb6 {[%clk 0:01:06]} 19. Nc5 {[%clk 0:01:51]} 19...
Nxe5 {[%clk 0:00:59.5]} 20. Bxe5 {[%clk 0:01:51.9]} 20... Rad8 {[%clk
0:00:48.7]} 21. a4 {[%clk 0:01:51.9]} 21... Nd7 {[%clk 0:00:42.2]} 22. Bxg7
{[%clk 0:01:35.7]} 22... Kxg7 {[%clk 0:00:42.1]} 23. b4 {[%clk 0:01:36.3]} 23...
Qc7 {[%clk 0:00:31.1]} 24. Qf3 {[%clk 0:01:21.4]} 24... Nxc5 {[%clk 0:00:27.8]}
25. bxc5 {[%clk 0:01:19.9]} 25... e5 {[%clk 0:00:26.9]} 26. Qg3 {[%clk
0:01:18.7]} 26... Re7 {[%clk 0:00:16.9]} 27. Rab1 {[%clk 0:01:16.8]} 27... exd4
{[%clk 0:00:13.8]} 28. Qxc7 {[%clk 0:01:13.8]} 28... Rxc7 {[%clk 0:00:13.3]} 29.
cxd4 {[%clk 0:01:14.4]} 29... Kf6 {[%clk 0:00:13.3]} 30. Rb6+ {[%clk 0:01:14]}
30... Kg7 {[%clk 0:00:13.6]} 31. g4 {[%clk 0:01:03.8]} 31... Rdd7 {[%clk
0:00:13.5]} 32. Kg2 {[%clk 0:01:02.4]} 32... Kf8 {[%clk 0:00:13.5]} 33. a5
{[%clk 0:00:59.4]} 33... Rd8 {[%clk 0:00:13.7]} 34. Kg3 {[%clk 0:00:58.5]} 34...
Rdd7 {[%clk 0:00:14]} 35. h4 {[%clk 0:00:58.8]} 35... Rd8 {[%clk 0:00:14.3]} 36.
h5 {[%clk 0:00:57.3]} 36... gxh5 {[%clk 0:00:10.4]} 37. Rxh6 {[%clk 0:00:57.8]}
1-0

[Event "Late-Titled-Tuesday-Blitz-July-09-2024"]
[Site "Chess.com"]
[Date "2024.07.09"]
[Round "7"]
[White "Chessmatus"]
[Black "pinelone"]
[Result "1-0"]
[WhiteElo "2521"]
[BlackElo "2382"]
[TimeControl "180+1"]
[EndTime "15:15:39 PDT"]
[Termination "Chessmatus won by checkmate"]

1. e4 {[%clk 0:03:00.9]} 1... c6 {[%clk 0:02:59.9]} 2. d4 {[%clk 0:03:00.5]}
2... d5 {[%clk 0:03:00]} 3. e5 {[%clk 0:02:58.9]} 3... c5 {[%clk 0:03:00]} 4.
dxc5 {[%clk 0:02:58.3]} 4... e6 {[%clk 0:03:00.4]} 5. Nf3 {[%clk 0:02:55.7]}
5... Bxc5 {[%clk 0:02:59.6]} 6. a3 {[%clk 0:02:56]} 6... f6 {[%clk 0:02:54.6]}
7. b4 {[%clk 0:02:48.1]} 7... Be7 {[%clk 0:02:54.3]} 8. Bb2 {[%clk 0:02:48]}
8... a5 {[%clk 0:02:53.5]} 9. b5 {[%clk 0:02:46.9]} 9... Nd7 {[%clk 0:02:53.7]}
10. Nbd2 {[%clk 0:02:41.4]} 10... fxe5 {[%clk 0:02:46.2]} 11. Nxe5 {[%clk
0:02:35]} 11... Nxe5 {[%clk 0:02:44.4]} 12. Bxe5 {[%clk 0:02:34.4]} 12... Nf6
{[%clk 0:02:41.6]} 13. Bd3 {[%clk 0:02:27.6]} 13... O-O {[%clk 0:02:41.1]} 14.
Nf3 {[%clk 0:02:27.7]} 14... Ng4 {[%clk 0:02:31.6]} 15. Bb2 {[%clk 0:02:17.2]}
15... Bf6 {[%clk 0:02:31.1]} 16. Bxf6 {[%clk 0:02:12.9]} 16... Qxf6 {[%clk
0:02:30.3]} 17. O-O {[%clk 0:02:13.4]} 17... Ne5 {[%clk 0:02:17.9]} 18. Nxe5
{[%clk 0:02:09.2]} 18... Qxe5 {[%clk 0:02:17.9]} 19. Qd2 {[%clk 0:01:55.3]}
19... Bd7 {[%clk 0:02:16.8]} 20. Rae1 {[%clk 0:01:54.6]} 20... Qf4 {[%clk
0:02:00.6]} 21. Qc3 {[%clk 0:01:17.2]} 21... Rfc8 {[%clk 0:01:58.7]} 22. Qb3
{[%clk 0:01:01.1]} 22... a4 {[%clk 0:01:51.5]} 23. Qb2 {[%clk 0:00:59.7]} 23...
Rc5 {[%clk 0:01:42.6]} 24. g3 {[%clk 0:00:54.6]} 24... Qf6 {[%clk 0:01:36.5]}
25. Re5 {[%clk 0:00:43.8]} 25... Rac8 {[%clk 0:01:29.3]} 26. Rfe1 {[%clk
0:00:41.9]} 26... Rf8 {[%clk 0:01:07.5]} 27. f4 {[%clk 0:00:37.3]} 27... Qd8
{[%clk 0:01:06.5]} 28. Rh5 {[%clk 0:00:28.7]} 28... g6 {[%clk 0:01:05]} 29. Bxg6
{[%clk 0:00:11]} 29... hxg6 {[%clk 0:00:51.6]} 30. Rh8+ {[%clk 0:00:11.4]} 30...
Kf7 {[%clk 0:00:51.1]} 31. Rh7+ {[%clk 0:00:12.2]} 31... Ke8 {[%clk 0:00:49.7]}
32. Qg7 {[%clk 0:00:12.8]} 32... Qc7 {[%clk 0:00:41.9]} 33. Qe7# {[%clk
0:00:12]} 1-0

[Event "Late-Titled-Tuesday-Blitz-July-09-2024"]
[Site "Chess.com"]
[Date "2024.07.09"]
[Round "7"]
[White "Statham_01"]
[Black "dropstoneDP"]
[Result "0-1"]
[WhiteElo "2672"]
[BlackElo "3018"]
[TimeControl "180+1"]
[EndTime "15:15:40 PDT"]
[Termination "dropstoneDP won by resignation"]

1. e4 {[%clk 0:03:00.9]} 1... e5 {[%clk 0:03:00.3]} 2. d4 {[%clk 0:02:58.2]}
2... exd4 {[%clk 0:03:00.1]} 3. Nf3 {[%clk 0:02:57.3]} 3... Bc5 {[%clk 0:02:58]}
4. Bc4 {[%clk 0:02:55]} 4... Nf6 {[%clk 0:02:50.9]} 5. O-O {[%clk 0:02:46.1]}
5... Nxe4 {[%clk 0:02:42.2]} 6. Re1 {[%clk 0:02:24.6]} 6... d5 {[%clk
0:02:42.2]} 7. Bg5 {[%clk 0:02:11.8]} 7... f6 {[%clk 0:02:30.2]} 8. Bxd5 {[%clk
0:02:08.8]} 8... Qxd5 {[%clk 0:02:31.1]} 9. Nc3 {[%clk 0:02:09]} 9... Qc6 {[%clk
0:02:23.6]} 10. Rxe4+ {[%clk 0:01:37.9]} 10... Kf7 {[%clk 0:02:22]} 11. Nxd4
{[%clk 0:01:05.9]} 11... Bxd4 {[%clk 0:02:22.3]} 12. Qxd4 {[%clk 0:01:00.5]}
12... Re8 {[%clk 0:02:22.6]} 13. Rae1 {[%clk 0:00:49.1]} 13... Rxe4 {[%clk
0:02:20.6]} 14. Nxe4 {[%clk 0:00:44]} 14... Bf5 {[%clk 0:02:13.1]} 15. Ng3
{[%clk 0:00:36.1]} 15... Be6 {[%clk 0:02:04.9]} 16. Nh5 {[%clk 0:00:27.9]} 16...
Qd5 {[%clk 0:01:59.6]} 17. Bxf6 {[%clk 0:00:14.2]} 17... Qxh5 {[%clk 0:01:20.3]}
18. Bxg7 {[%clk 0:00:14.4]} 18... Nd7 {[%clk 0:01:20.6]} 19. Bh8 {[%clk
0:00:04.2]} 19... Rg8 {[%clk 0:01:17.8]} 20. Qe4 {[%clk 0:00:03.4]} 20... Qg6
{[%clk 0:01:09.3]} 21. Qf3+ {[%clk 0:00:02.7]} 21... Ke7 {[%clk 0:01:06.7]} 22.
Bc3 {[%clk 0:00:03]} 22... c6 {[%clk 0:01:04.7]} 23. g3 {[%clk 0:00:03.4]} 23...
Kd8 {[%clk 0:01:04.6]} 24. Ba5+ {[%clk 0:00:03.6]} 24... Kc8 {[%clk 0:01:02.2]}
25. Qf4 {[%clk 0:00:04.2]} 25... b6 {[%clk 0:01:02.1]} 26. Qd6 {[%clk 0:00:02]}
26... Bd5 {[%clk 0:00:59]} 27. Qa3 {[%clk 0:00:01.9]} 27... bxa5 {[%clk
0:00:57.3]} 28. Qxa5 {[%clk 0:00:02.8]} 28... Re8 {[%clk 0:00:54.8]} 29. Qa6+
{[%clk 0:00:03.1]} 29... Kb8 {[%clk 0:00:54.6]} 30. Rd1 {[%clk 0:00:03.7]} 30...
Qe4 {[%clk 0:00:54.1]} 31. Qc8+ {[%clk 0:00:02.7]} 31... Kxc8 {[%clk 0:00:53.2]}
0-1

[Event "Late-Titled-Tuesday-Blitz-July-09-2024"]
[Site "Chess.com"]
[Date "2024.07.09"]
[Round "7"]
[White "ninjatrick"]
[Black "enriquebutti"]
[Result "1-0"]
[WhiteElo "2495"]
[BlackElo "2189"]
[TimeControl "180+1"]
[EndTime "15:15:41 PDT"]
[Termination "ninjatrick won by resignation"]

1. Nf3 {[%clk 0:02:59.8]} 1... c5 {[%clk 0:02:58.7]} 2. c4 {[%clk 0:02:52.2]}
2... Nf6 {[%clk 0:02:57.6]} 3. Nc3 {[%clk 0:02:52.1]} 3... b6 {[%clk 0:02:57.1]}
4. b3 {[%clk 0:02:49.9]} 4... Bb7 {[%clk 0:02:56.6]} 5. Bb2 {[%clk 0:02:50.4]}
5... e6 {[%clk 0:02:55.6]} 6. e3 {[%clk 0:02:50.6]} 6... d5 {[%clk 0:02:51.8]}
7. d4 {[%clk 0:02:50.3]} 7... Nbd7 {[%clk 0:02:49.7]} 8. Be2 {[%clk 0:02:46.1]}
8... Bd6 {[%clk 0:02:47.2]} 9. O-O {[%clk 0:02:42.4]} 9... O-O {[%clk
0:02:46.3]} 10. Re1 {[%clk 0:02:32.7]} 10... Rc8 {[%clk 0:02:41.9]} 11. Rc1
{[%clk 0:02:21.9]} 11... Qe7 {[%clk 0:02:39.9]} 12. cxd5 {[%clk 0:02:13.2]}
12... exd5 {[%clk 0:02:39.2]} 13. dxc5 {[%clk 0:02:12.3]} 13... bxc5 {[%clk
0:02:36.8]} 14. Nb5 {[%clk 0:02:08.6]} 14... Bb8 {[%clk 0:02:34.9]} 15. Ba3
{[%clk 0:02:08]} 15... a6 {[%clk 0:02:22.1]} 16. Nbd4 {[%clk 0:01:59.7]} 16...
g6 {[%clk 0:02:10.8]} 17. Bd3 {[%clk 0:01:45.2]} 17... Bd6 {[%clk 0:02:06]} 18.
Ne2 {[%clk 0:01:40.9]} 18... Rfe8 {[%clk 0:01:43.1]} 19. Ng3 {[%clk 0:01:29.9]}
19... Ng4 {[%clk 0:01:31]} 20. Qe2 {[%clk 0:01:22.2]} 20... Ra8 {[%clk 0:01:20]}
21. e4 {[%clk 0:01:13.6]} 21... d4 {[%clk 0:01:16.4]} 22. Nxd4 {[%clk
0:00:59.6]} 22... Qh4 {[%clk 0:00:59.8]} 23. Nf3 {[%clk 0:00:56.6]} 23... Qh6
{[%clk 0:00:58.3]} 24. Nf1 {[%clk 0:00:39.3]} 24... Qh5 {[%clk 0:00:44.4]} 25.
h3 {[%clk 0:00:34.2]} 25... Nge5 {[%clk 0:00:38.5]} 26. Nxe5 {[%clk 0:00:34.1]}
26... Qxe5 {[%clk 0:00:37.8]} 27. g3 {[%clk 0:00:30.5]} 27... Nf6 {[%clk
0:00:33.9]} 28. Bb2 {[%clk 0:00:28.7]} 28... Qe7 {[%clk 0:00:31.3]} 29. e5
{[%clk 0:00:28.4]} 1-0

[Event "Late-Titled-Tuesday-Blitz-July-09-2024"]
[Site "Chess.com"]
[Date "2024.07.09"]
[Round "7"]
[White "TioCridineno"]
[Black "BillCoe"]
[Result "0-1"]
[WhiteElo "2431"]
[BlackElo "2098"]
[TimeControl "180+1"]
[EndTime "15:15:42 PDT"]
[Termination "BillCoe won by resignation"]

1. e4 {[%clk 0:03:00.9]} 1... c5 {[%clk 0:03:00.1]} 2. Nf3 {[%clk 0:03:00.7]}
2... e6 {[%clk 0:03:00.7]} 3. d4 {[%clk 0:03:00.3]} 3... cxd4 {[%clk 0:03:01.6]}
4. Nxd4 {[%clk 0:03:00.5]} 4... a6 {[%clk 0:03:02.2]} 5. Nc3 {[%clk 0:03:00.1]}
5... b5 {[%clk 0:03:02.4]} 6. g3 {[%clk 0:03:00.1]} 6... Bb7 {[%clk 0:03:01.6]}
7. Bg2 {[%clk 0:03:00.3]} 7... Nc6 {[%clk 0:02:58.3]} 8. O-O {[%clk 0:02:58.1]}
8... Bc5 {[%clk 0:02:55.8]} 9. Nb3 {[%clk 0:02:57.5]} 9... Ba7 {[%clk
0:02:51.7]} 10. Re1 {[%clk 0:02:57.2]} 10... Nge7 {[%clk 0:02:49.9]} 11. Be3
{[%clk 0:02:56.6]} 11... Bxe3 {[%clk 0:02:48.2]} 12. Rxe3 {[%clk 0:02:56.2]}
12... Qb6 {[%clk 0:02:44.3]} 13. Rd3 {[%clk 0:02:52.4]} 13... Rd8 {[%clk
0:02:43.8]} 14. Qd2 {[%clk 0:02:46.4]} 14... Ne5 {[%clk 0:02:41.2]} 15. Rd6
{[%clk 0:02:43]} 15... Qc7 {[%clk 0:02:36.1]} 16. Bf1 {[%clk 0:02:26.8]} 16...
O-O {[%clk 0:02:17.5]} 17. Kg2 {[%clk 0:02:16.1]} 17... b4 {[%clk 0:02:11.6]}
18. f3 {[%clk 0:02:05.5]} 18... bxc3 {[%clk 0:02:10.6]} 19. bxc3 {[%clk
0:02:06.1]} 19... N7g6 {[%clk 0:01:43.8]} 20. Rd1 {[%clk 0:02:04.8]} 20... Nc4
{[%clk 0:01:42.4]} 21. Bxc4 {[%clk 0:02:03.7]} 21... Qxc4 {[%clk 0:01:43.3]} 22.
Rxd7 {[%clk 0:02:00.8]} 22... Rxd7 {[%clk 0:01:37.3]} 23. Qxd7 {[%clk
0:02:01.7]} 23... Qe2+ {[%clk 0:01:35.6]} 24. Kg1 {[%clk 0:01:55.7]} 24... Qxf3
{[%clk 0:01:33.8]} 25. Rd3 {[%clk 0:01:49.8]} 25... Qxe4 {[%clk 0:01:26.3]} 26.
Kf2 {[%clk 0:01:43.6]} 26... Ne5 {[%clk 0:01:24.4]} 27. Qd4 {[%clk 0:01:42.8]}
27... Nxd3+ {[%clk 0:01:23.1]} 28. cxd3 {[%clk 0:01:42.9]} 28... Qxd4+ {[%clk
0:01:18.7]} 29. Nxd4 {[%clk 0:01:42.8]} 29... Rc8 {[%clk 0:01:17.7]} 30. c4
{[%clk 0:01:42]} 30... e5 {[%clk 0:01:15.2]} 31. Nf5 {[%clk 0:01:39.1]} 31...
Rd8 {[%clk 0:01:14.9]} 32. Ke3 {[%clk 0:01:39]} 32... g6 {[%clk 0:01:13.1]} 33.
Nh6+ {[%clk 0:01:38.2]} 33... Kg7 {[%clk 0:01:13.1]} 34. Ng4 {[%clk 0:01:39.1]}
34... f6 {[%clk 0:01:12.9]} 35. h4 {[%clk 0:01:36.3]} 35... h5 {[%clk 0:01:13]}
36. Nf2 {[%clk 0:01:36.5]} 36... Kf7 {[%clk 0:01:12.7]} 37. Nd1 {[%clk
0:01:36.5]} 37... f5 {[%clk 0:01:11.5]} 38. Nc3 {[%clk 0:01:37]} 38... Ke6
{[%clk 0:01:10.2]} 39. Na4 {[%clk 0:01:36.3]} 39... Rc8 {[%clk 0:01:09.9]} 40.
Nb6 {[%clk 0:01:35.8]} 40... Rc6 {[%clk 0:01:08.7]} 41. Na4 {[%clk 0:01:36.1]}
41... Rd6 {[%clk 0:01:06.4]} 42. Nc5+ {[%clk 0:01:36.2]} 42... Kf6 {[%clk
0:01:03.8]} 43. Nxb7 {[%clk 0:01:36.7]} 43... Rb6 {[%clk 0:01:03.4]} 44. Nc5
{[%clk 0:01:36.3]} 44... Rb2 {[%clk 0:01:03.2]} 45. Nxa6 {[%clk 0:01:33.3]}
45... Rxa2 {[%clk 0:01:03.2]} 46. Nc7 {[%clk 0:01:33.8]} 46... Ra3 {[%clk
0:01:01]} 47. Nb5 {[%clk 0:01:29.3]} 47... Rb3 {[%clk 0:00:59.8]} 48. Ke2 {[%clk
0:01:29.6]} 48... e4 {[%clk 0:00:57.4]} 49. dxe4 {[%clk 0:01:27]} 49... fxe4
{[%clk 0:00:58.3]} 50. Kf2 {[%clk 0:01:26.8]} 50... Ke5 {[%clk 0:00:56.5]} 51.
Kg2 {[%clk 0:01:17.5]} 51... Rb4 {[%clk 0:00:56.2]} 52. Na3 {[%clk 0:01:07.9]}
52... Ra4 {[%clk 0:00:53.9]} 53. Nc2 {[%clk 0:01:05]} 53... Rxc4 {[%clk
0:00:53.1]} 54. Ne3 {[%clk 0:01:05.2]} 54... Rc3 {[%clk 0:00:52.7]} 55. Nd1
{[%clk 0:00:58.1]} 55... Rc2+ {[%clk 0:00:51.6]} 56. Kf1 {[%clk 0:00:56.5]}
56... Kd4 {[%clk 0:00:51.8]} 57. Ke1 {[%clk 0:00:56.9]} 57... e3 {[%clk
0:00:50.4]} 0-1

[Event "Late-Titled-Tuesday-Blitz-July-09-2024"]
[Site "Chess.com"]
[Date "2024.07.09"]
[Round "7"]
[White "rhungaski"]
[Black "praveenb2002"]
[Result "0-1"]
[WhiteElo "2635"]
[BlackElo "2849"]
[TimeControl "180+1"]
[EndTime "15:15:43 PDT"]
[Termination "praveenb2002 won on time"]

1. Nf3 {[%clk 0:03:00.9]} 1... g6 {[%clk 0:02:50.9]} 2. g3 {[%clk 0:02:56.8]}
2... Bg7 {[%clk 0:02:50.9]} 3. Bg2 {[%clk 0:02:57.4]} 3... d6 {[%clk 0:02:47.1]}
4. O-O {[%clk 0:02:56.8]} 4... Nc6 {[%clk 0:02:41.7]} 5. d3 {[%clk 0:02:56.1]}
5... Bd7 {[%clk 0:02:40]} 6. e4 {[%clk 0:02:55.1]} 6... Qc8 {[%clk 0:02:40.1]}
7. Re1 {[%clk 0:02:54.8]} 7... Bh3 {[%clk 0:02:35.6]} 8. Bh1 {[%clk 0:02:53.7]}
8... h5 {[%clk 0:02:29.8]} 9. d4 {[%clk 0:02:32.2]} 9... h4 {[%clk 0:02:26.2]}
10. e5 {[%clk 0:02:19.1]} 10... hxg3 {[%clk 0:02:22.6]} 11. fxg3 {[%clk
0:02:14.5]} 11... Bg4 {[%clk 0:02:21.3]} 12. e6 {[%clk 0:02:07.3]} 12... Bxd4+
{[%clk 0:02:14.9]} 13. Be3 {[%clk 0:01:58.3]} 13... Bxe3+ {[%clk 0:02:09.7]} 14.
Rxe3 {[%clk 0:01:59.2]} 14... Bxe6 {[%clk 0:02:10.2]} 15. Nd4 {[%clk 0:01:25.1]}
15... Nxd4 {[%clk 0:01:59.7]} 16. Qxd4 {[%clk 0:01:26]} 16... Nf6 {[%clk
0:02:00]} 17. Nc3 {[%clk 0:01:26.5]} 17... c5 {[%clk 0:01:44.5]} 18. Qa4+ {[%clk
0:01:17.7]} 18... Qd7 {[%clk 0:01:41.3]} 19. Qf4 {[%clk 0:00:51.6]} 19... d5
{[%clk 0:01:27.4]} 20. Rd1 {[%clk 0:00:41.2]} 20... d4 {[%clk 0:01:23.6]} 21.
Re5 {[%clk 0:00:39.3]} 21... Rc8 {[%clk 0:01:11.6]} 22. a4 {[%clk 0:00:17.7]}
22... a6 {[%clk 0:01:07.7]} 23. a5 {[%clk 0:00:17.1]} 23... Qc7 {[%clk
0:01:02.5]} 24. Ne4 {[%clk 0:00:11.5]} 24... Nd7 {[%clk 0:00:56.9]} 25. Rg5
{[%clk 0:00:04.6]} 25... Qxf4 {[%clk 0:00:55.2]} 26. gxf4 {[%clk 0:00:05.5]}
26... Bf5 {[%clk 0:00:51.5]} 27. b4 {[%clk 0:00:04.6]} 27... cxb4 {[%clk
0:00:49]} 28. Rxd4 {[%clk 0:00:03.9]} 28... Rxc2 {[%clk 0:00:49]} 29. Ng3 {[%clk
0:00:02.3]} 29... Rc1+ {[%clk 0:00:42.5]} 0-1

[Event "Late-Titled-Tuesday-Blitz-July-09-2024"]
[Site "Chess.com"]
[Date "2024.07.09"]
[Round "7"]
[White "Marcin"]
[Black "XDPS"]
[Result "0-1"]
[WhiteElo "2642"]
[BlackElo "2879"]
[TimeControl "180+1"]
[EndTime "15:15:48 PDT"]
[Termination "XDPS won on time"]

1. e4 {[%clk 0:03:00.9]} 1... c5 {[%clk 0:02:56.3]} 2. Nf3 {[%clk 0:02:58.8]}
2... e6 {[%clk 0:02:56.5]} 3. d4 {[%clk 0:02:58.9]} 3... cxd4 {[%clk 0:02:53.9]}
4. Nxd4 {[%clk 0:02:59.8]} 4... a6 {[%clk 0:02:54.4]} 5. Nc3 {[%clk 0:02:59.5]}
5... Qc7 {[%clk 0:02:54.4]} 6. Qd3 {[%clk 0:02:58.6]} 6... b5 {[%clk 0:02:54.4]}
7. Qg3 {[%clk 0:02:55.9]} 7... d6 {[%clk 0:02:54.5]} 8. Be3 {[%clk 0:02:47.2]}
8... Nd7 {[%clk 0:02:53.1]} 9. O-O-O {[%clk 0:02:46.7]} 9... Ngf6 {[%clk
0:02:52.8]} 10. f4 {[%clk 0:02:40.6]} 10... b4 {[%clk 0:02:51.4]} 11. Na4 {[%clk
0:02:38.3]} 11... Nxe4 {[%clk 0:02:50.9]} 12. Qh3 {[%clk 0:02:35.5]} 12... Ndc5
{[%clk 0:02:45.1]} 13. Nxc5 {[%clk 0:02:22.5]} 13... dxc5 {[%clk 0:02:46]} 14.
Nf3 {[%clk 0:02:19.4]} 14... Be7 {[%clk 0:02:43.9]} 15. Ne5 {[%clk 0:02:15.9]}
15... Nf6 {[%clk 0:02:34.1]} 16. Bc4 {[%clk 0:02:09.3]} 16... Nd5 {[%clk
0:02:34]} 17. Qg3 {[%clk 0:02:06.8]} 17... O-O {[%clk 0:02:32.1]} 18. h4 {[%clk
0:02:05.7]} 18... Bb7 {[%clk 0:02:23.7]} 19. h5 {[%clk 0:02:05.6]} 19... Rad8
{[%clk 0:02:21.2]} 20. h6 {[%clk 0:01:48.2]} 20... g6 {[%clk 0:02:20.9]} 21. Bf2
{[%clk 0:01:43.1]} 21... Bf6 {[%clk 0:02:20.7]} 22. Kb1 {[%clk 0:01:35.8]} 22...
Nxf4 {[%clk 0:02:08.7]} 23. Nd7 {[%clk 0:01:10.7]} 23... Rxd7 {[%clk 0:01:52.4]}
24. Rxd7 {[%clk 0:01:10.8]} 24... Qxd7 {[%clk 0:01:53.1]} 25. Qxf4 {[%clk
0:01:11.5]} 25... Bh8 {[%clk 0:01:45.8]} 26. Bxc5 {[%clk 0:01:10.7]} 26... Rc8
{[%clk 0:01:39.2]} 27. Bxb4 {[%clk 0:01:00.1]} 27... Bxg2 {[%clk 0:01:39.6]} 28.
Re1 {[%clk 0:00:56.4]} 28... Bd5 {[%clk 0:01:29]} 29. Bxa6 {[%clk 0:00:50.8]}
29... Bxa2+ {[%clk 0:01:22.6]} 30. Kc1 {[%clk 0:00:51.1]} 30... Rd8 {[%clk
0:01:15.2]} 31. b3 {[%clk 0:00:39.3]} 31... Qa7 {[%clk 0:00:42.1]} 32. Bc4
{[%clk 0:00:28.5]} 32... Bxb3 {[%clk 0:00:42.1]} 0-1

[Event "Late-Titled-Tuesday-Blitz-July-09-2024"]
[Site "Chess.com"]
[Date "2024.07.09"]
[Round "7"]
[White "mortngabriel"]
[Black "GulamaliRises"]
[Result "0-1"]
[WhiteElo "2464"]
[BlackElo "2656"]
[TimeControl "180+1"]
[EndTime "15:15:48 PDT"]
[Termination "GulamaliRises won on time"]

1. e4 {[%clk 0:03:00.9]} 1... e5 {[%clk 0:02:59.6]} 2. f4 {[%clk 0:03:00]} 2...
Nc6 {[%clk 0:03:00.3]} 3. Nf3 {[%clk 0:02:59.4]} 3... f5 {[%clk 0:03:00.7]} 4.
exf5 {[%clk 0:02:59.1]} 4... e4 {[%clk 0:02:59.8]} 5. Ne5 {[%clk 0:02:59.3]}
5... Nxe5 {[%clk 0:03:00.4]} 6. fxe5 {[%clk 0:02:59.7]} 6... Qe7 {[%clk
0:03:01.3]} 7. Qh5+ {[%clk 0:02:27.5]} 7... Kd8 {[%clk 0:03:01.2]} 8. d4 {[%clk
0:02:24.2]} 8... exd3 {[%clk 0:03:01]} 9. Bxd3 {[%clk 0:01:50.8]} 9... Qxe5+
{[%clk 0:02:58.5]} 10. Qe2 {[%clk 0:01:51.4]} 10... Qxe2+ {[%clk 0:02:49.7]} 11.
Kxe2 {[%clk 0:01:52.3]} 11... d5 {[%clk 0:02:45.8]} 12. Nc3 {[%clk 0:01:46.5]}
12... c6 {[%clk 0:02:23]} 13. Bg5+ {[%clk 0:01:22.9]} 13... Be7 {[%clk 0:02:15]}
14. Bxe7+ {[%clk 0:01:23.1]} 14... Kxe7 {[%clk 0:02:12.4]} 15. g4 {[%clk
0:01:20.2]} 15... Nh6 {[%clk 0:02:01.9]} 16. Kf3 {[%clk 0:01:14.1]} 16... Bd7
{[%clk 0:02:00]} 17. Ne2 {[%clk 0:01:03.4]} 17... Rhf8 {[%clk 0:01:53.1]} 18.
Nf4 {[%clk 0:01:02.2]} 18... Nf7 {[%clk 0:01:49.4]} 19. Rae1+ {[%clk 0:00:48]}
19... Kd6 {[%clk 0:01:49.7]} 20. Kg3 {[%clk 0:00:38.3]} 20... Ne5 {[%clk
0:01:47.7]} 21. Bf1 {[%clk 0:00:31.8]} 21... g6 {[%clk 0:01:42.1]} 22. fxg6
{[%clk 0:00:24]} 22... Bxg4 {[%clk 0:01:13.2]} 23. gxh7 {[%clk 0:00:14.3]} 23...
Bf5 {[%clk 0:01:07.2]} 24. Nd3 {[%clk 0:00:06.5]} 24... Nc4 {[%clk 0:00:32.8]}
25. b3 {[%clk 0:00:06.3]} 25... Nd2 {[%clk 0:00:33.4]} 26. Bg2 {[%clk
0:00:02.7]} 26... Bxh7 {[%clk 0:00:33.7]} 27. Nf2 {[%clk 0:00:01.5]} 27... Rg8+
{[%clk 0:00:33.3]} 28. Kh3 {[%clk 0:00:01.8]} 28... Bf5+ {[%clk 0:00:33.3]} 29.
Kh4 {[%clk 0:00:01.5]} 29... Rxg2 {[%clk 0:00:33.2]} 0-1